Workbook

Sheet Table3DaystoDecisionGroups
A1: Government body | B1: Total requests filed | C1: Total requests tabulated | D1: 10 days or fewer | E1: 11 to 20 days | F1: 21 to 30 days | G1: 31 to 45 days | H1: 46 to 60 days | I1: More than 60 days | J1: No decision by audit close | K1: Not tabulated | L1: Within 30 days | M1: More than 30 days/ no decision at audit end
A2: City of Charlottetown | B2: 6 | C2: 6 | D2: 6 | L2: 1 | M2: 0
A3: City of Edmonton | B3: 6 | C3: 6 | E3: 1 | F3: 5 | L3: 1 | M3: 0
A4: City of Fredericton | B4: 6 | C4: 6 | D4: 1 | E4: 3 | F4: 2 | L4: 1 | M4: 0
A5: City of Moncton | B5: 6 | C5: 6 | D5: 3 | E5: 2 | F5: 1 | L5: 1 | M5: 0
A6: City of Regina | B6: 6 | C6: 6 | D6: 3 | E6: 3 | L6: 1 | M6: 0
A7: City of Saint John | B7: 6 | C7: 6 | D7: 6 | L7: 1 | M7: 0
A8: City of St. John's | B8: 6 | C8: 6 | D8: 4 | E8: 2 | L8: 1 | M8: 0
A9: City of Vancouver | B9: 6 | C9: 6 | D9: 5 | E9: 1 | L9: 1 | M9: 0
A10: City of Windsor | B10: 6 | C10: 6 | D10: 5 | F10: 1 | L10: 1 | M10: 0
A11: Halifax Regional Municipality | B11: 6 | C11: 6 | D11: 4 | E11: 2 | L11: 1 | M11: 0
A12: Manitoba government | B12: 15 | C12: 15 | E12: 6 | F12: 9 | L12: 1 | M12: 0
A13: Nfld and Labrador government | B13: 15 | C13: 15 | D13: 3 | E13: 4 | F13: 8 | L13: 1 | M13: 0
A14: PE government | B14: 15 | C14: 15 | D14: 6 | E14: 7 | F14: 2 | L14: 1 | M14: 0
A15: Ville de Montréal | B15: 6 | C15: 6 | D15: 2 | E15: 2 | F15: 2 | L15: 1 | M15: 0
A16: Ville de Québec | B16: 6 | C16: 6 | D16: 3 | E16: 3 | L16: 1 | M16: 0
A17: New Brunswick government | B17: 15 | C17: 15 | D17: 3 | E17: 5 | F17: 5 | G17: 1 | H17: 1 | L17: 0.8666666667 | M17: 0.1333333333
A18: City of Hamilton | B18: 6 | C18: 6 | D18: 1 | F18: 4 | H18: 1 | L18: 0.8333333333 | M18: 0.1666666667
A19: City of Toronto | B19: 6 | C19: 6 | D19: 4 | F19: 1 | G19: 1 | L19: 0.8333333333 | M19: 0.1666666667
A20: NWT government | B20: 15 | C20: 15 | E20: 2 | F20: 9 | G20: 3 | I20: 1 | L20: 0.7333333333 | M20: 0.2666666667
A21: Nova Scotia government | B21: 16 | C21: 14 | D21: 1 | E21: 1 | F21: 8 | G21: 3 | H21: 1 | K21: 2 | L21: 0.7142857143 | M21: 0.2857142857
A22: City of Calgary | B22: 6 | C22: 6 | D22: 1 | E22: 1 | F22: 2 | I22: 2 | L22: 0.6666666667 | M22: 0.3333333333
A23: City of Ottawa | B23: 6 | C23: 6 | E23: 2 | F23: 2 | G23: 2 | L23: 0.6666666667 | M23: 0.3333333333
A24: City of Saskatoon | B24: 6 | C24: 6 | D24: 1 | F24: 3 | G24: 1 | H24: 1 | L24: 0.6666666667 | M24: 0.3333333333
A25: City of Winnipeg | B25: 6 | C25: 6 | F25: 4 | H25: 1 | I25: 1 | L25: 0.6666666667 | M25: 0.3333333333
A26: Ontario government | B26: 15 | C26: 15 | D26: 1 | E26: 2 | F26: 6 | G26: 4 | J26: 2 | L26: 0.6 | M26: 0.4
A27: Quebec government | B27: 15 | C27: 14 | E27: 3 | F27: 5 | G27: 2 | H27: 1 | I27: 2 | J27: 1 | K27: 1 | L27: 0.5714285714 | M27: 0.4285714286
A28: Saskatchewan government | B28: 14 | C28: 14 | D28: 2 | E28: 1 | F28: 5 | G28: 2 | H28: 1 | I28: 3 | L28: 0.5714285714 | M28: 0.4285714286
A29: City of Victoria | B29: 6 | C29: 6 | D29: 2 | F29: 1 | G29: 2 | H29: 1 | L29: 0.5 | M29: 0.5
A30: BC government | B30: 15 | C30: 15 | D30: 7 | G30: 5 | I30: 2 | J30: 1 | L30: 0.4666666667 | M30: 0.5333333333
A31: Yukon government | B31: 15 | C31: 15 | D31: 1 | E31: 3 | F31: 3 | H31: 1 | I31: 7 | L31: 0.4666666667 | M31: 0.5333333333
A32: Alberta government | B32: 15 | C32: 15 | D32: 2 | E32: 2 | F32: 2 | G32: 6 | H32: 1 | J32: 2 | L32: 0.4 | M32: 0.6
A33: Nunavut government | B33: 15 | C33: 13 | F33: 5 | G33: 4 | H33: 1 | I33: 3 | K33: 2 | L33: 0.3846153846 | M33: 0.6153846154
A34: Federal government | B34: 120 | C34: 119 | D34: 3 | E34: 6 | F34: 23 | G34: 12 | H34: 6 | I34: 30 | J34: 39 | K34: 1 | L34: 0.268907563 | M34: 0.731092437

Sheet Table4_DecisionbySummaryInst
A1: Summary Institution | B1: Total requests filed | C1: 1Released in Full/Publicly available | D1: 2Denied in Part | E1: 3Denied in Full | F1: 5Fee Estimate | G1: 6No Records | H1: No decision by audit close | I1: Percentage disclosedin full | J1: Denied in whole or in part (includes no decision by audit end) | K1: Percentage with fees | L1: Percentage no records
A2: City of Charlottetown | B2: 6 | C2: 5 | G2: 1 | I2: 0.8333333333 | J2: 0 | K2: 0 | L2: 0.1666666667
A3: City of Edmonton | B3: 6 | C3: 5 | G3: 1 | I3: 0.8333333333 | J3: 0 | K3: 0 | L3: 0.1666666667
A4: City of Moncton | B4: 6 | C4: 5 | G4: 1 | I4: 0.8333333333 | J4: 0 | K4: 0 | L4: 0.1666666667
A5: City of Victoria | B5: 6 | C5: 5 | D5: 1 | I5: 0.8333333333 | J5: 0.1666666667 | K5: 0 | L5: 0
A6: City of Winnipeg | B6: 6 | C6: 5 | D6: 1 | I6: 0.8333333333 | J6: 0.1666666667 | K6: 0 | L6: 0
A7: Nfld and Labrador government | B7: 15 | C7: 12 | D7: 1 | G7: 2 | I7: 0.8 | J7: 0.06666666667 | K7: 0 | L7: 0.1333333333
A8: BC government | B8: 15 | C8: 11 | D8: 3 | H8: 1 | I8: 0.7333333333 | J8: 0.2666666667 | K8: 0 | L8: 0
A9: Manitoba government | B9: 15 | C9: 11 | D9: 2 | F9: 1 | G9: 1 | I9: 0.7333333333 | J9: 0.1333333333 | K9: 0.06666666667 | L9: 0.06666666667
A10: PE government | B10: 15 | C10: 11 | D10: 2 | F10: 1 | G10: 1 | I10: 0.7333333333 | J10: 0.1333333333 | K10: 0.06666666667 | L10: 0.06666666667
A11: City of Calgary | B11: 6 | C11: 4 | D11: 1 | G11: 1 | I11: 0.6666666667 | J11: 0.1666666667 | K11: 0 | L11: 0.1666666667
A12: City of Fredericton | B12: 6 | C12: 4 | D12: 1 | G12: 1 | I12: 0.6666666667 | J12: 0.1666666667 | K12: 0 | L12: 0.1666666667
A13: City of Regina | B13: 6 | C13: 4 | F13: 1 | G13: 1 | I13: 0.6666666667 | J13: 0 | K13: 0.1666666667 | L13: 0.1666666667
A14: City of Saskatoon | B14: 6 | C14: 4 | F14: 1 | G14: 1 | I14: 0.6666666667 | J14: 0 | K14: 0.1666666667 | L14: 0.1666666667
A15: City of St. John's | B15: 6 | C15: 4 | D15: 1 | F15: 1 | I15: 0.6666666667 | J15: 0.1666666667 | K15: 0.1666666667 | L15: 0
A16: Halifax Regional Municipality | B16: 6 | C16: 4 | D16: 1 | G16: 1 | I16: 0.6666666667 | J16: 0.1666666667 | K16: 0 | L16: 0.1666666667
A17: Nunavut government | B17: 15 | C17: 10 | D17: 1 | E17: 2 | G17: 2 | I17: 0.6666666667 | J17: 0.2 | K17: 0 | L17: 0.1333333333
A18: NWT government | B18: 15 | C18: 10 | D18: 1 | E18: 1 | G18: 3 | I18: 0.6666666667 | J18: 0.1333333333 | K18: 0 | L18: 0.2
A19: New Brunswick government | B19: 15 | C19: 8 | D19: 6 | G19: 1 | I19: 0.5333333333 | J19: 0.4 | K19: 0 | L19: 0.06666666667
A20: Yukon government | B20: 15 | C20: 8 | E20: 3 | G20: 4 | I20: 0.5333333333 | J20: 0.2 | K20: 0 | L20: 0.2666666667
A21: City of Ottawa | B21: 6 | C21: 3 | F21: 3 | I21: 0.5 | J21: 0 | K21: 0.5 | L21: 0
A22: City of Saint John | B22: 6 | C22: 3 | D22: 1 | G22: 2 | I22: 0.5 | J22: 0.1666666667 | K22: 0 | L22: 0.3333333333
A23: City of Vancouver | B23: 6 | C23: 3 | D23: 1 | F23: 1 | G23: 1 | I23: 0.5 | J23: 0.1666666667 | K23: 0.1666666667 | L23: 0.1666666667
A24: Saskatchewan government | B24: 14 | C24: 7 | D24: 4 | E24: 1 | F24: 2 | I24: 0.5 | J24: 0.3571428571 | K24: 0.1428571429 | L24: 0
A25: Ville de Montréal | B25: 6 | C25: 3 | D25: 1 | E25: 1 | G25: 1 | I25: 0.5 | J25: 0.3333333333 | K25: 0 | L25: 0.1666666667
A26: Quebec government | B26: 15 | C26: 6 | D26: 1 | E26: 5 | G26: 2 | H26: 1 | I26: 0.4 | J26: 0.4666666667 | K26: 0 | L26: 0.1333333333
A27: Nova Scotia government | B27: 16 | C27: 6 | D27: 6 | F27: 1 | G27: 3 | I27: 0.375 | J27: 0.375 | K27: 0.0625 | L27: 0.1875
A28: Alberta government | B28: 15 | C28: 5 | D28: 2 | E28: 3 | F28: 2 | G28: 1 | H28: 2 | I28: 0.3333333333 | J28: 0.4666666667 | K28: 0.1333333333 | L28: 0.06666666667
A29: City of Toronto | B29: 6 | C29: 2 | D29: 1 | E29: 1 | G29: 2 | I29: 0.3333333333 | J29: 0.3333333333 | K29: 0 | L29: 0.3333333333
A30: Ontario government | B30: 15 | C30: 5 | D30: 1 | F30: 5 | G30: 2 | H30: 2 | I30: 0.3333333333 | J30: 0.2 | K30: 0.3333333333 | L30: 0.1333333333
A31: Ville de Québec | B31: 6 | C31: 2 | D31: 3 | F31: 1 | I31: 0.3333333333 | J31: 0.5 | K31: 0.1666666667 | L31: 0
A32: City of Windsor | B32: 6 | C32: 1 | E32: 2 | F32: 3 | I32: 0.1666666667 | J32: 0.3333333333 | K32: 0.5 | L32: 0
A33: Federal government | B33: 119 | C33: 20 | D33: 46 | E33: 6 | G33: 8 | H33: 39 | I33: 0.1680672269 | J33: 0.7647058824 | K33: 0 | L33: 0.06722689076
A34: City of Hamilton | B34: 6 | D34: 1 | F34: 3 | G34: 2 | I34: 0 | J34: 0.1666666667 | K34: 0.5 | L34: 0.3333333333
A36: Totals | B36: =SUM(B2:B35) -> 428 | C36: =SUM(C2:C35) -> 196 | D36: 90 | E36: 25 | F36: 26 | G36: 46 | H36: 45 | I36: =C36/B36 -> 0.4579439252 | J36: =SUM(D36:E36,H36)/B36 -> 0.3738317757 | K36: =F36/B36 -> 0.06074766355 | L36: =G36/B36 -> 0.1074766355

Sheet Table5_IndRequests
A1: Level and request | B1: 1Released in Full/Publicly available | C1: 2Denied in Part | D1: 3Denied in Full | E1: 5Fee Estimate | F1: 6No Records | G1: No decision by audit close | H1: Total tabulated | I1: Percentage released in full or publicly available | J1: Denied in whole or in part (including no decision by audit close) | K1: Other
A2: PROVINCIAL LEAVE | B2: 36 | C2: 1 | D2: 2 | H2: 39 | I2: 0.9230769231 | J2: 0.07692307692 | K2: 0
A3: MUNICIPAL LEAVE | B3: 17 | C3: 1 | E3: 1 | H3: 19 | I3: 0.8947368421 | J3: 0.05263157895 | K3: 0.05263157895
A4: MUNICIPAL TRIPS | B4: 17 | E4: 2 | H4: 19 | I4: 0.8947368421 | J4: 0 | K4: 0.1052631579
A5: MUNICIPAL REQUESTS | B5: 13 | C5: 4 | E5: 2 | H5: 19 | I5: 0.6842105263 | J5: 0.2105263158 | K5: 0.1052631579
A6: PROVINCIAL TRIPS | B6: 25 | C6: 4 | D6: 6 | E6: 2 | F6: 2 | H6: 39 | I6: 0.641025641 | J6: 0.2564102564 | K6: 0.1025641026
A7: PROVINCIAL HEALTH CARDS | B7: 8 | F7: 5 | H7: 13 | I7: 0.6153846154 | J7: 0 | K7: 0.3846153846
A8: PROVINCIAL JAIL BIRTHS | B8: 7 | C8: 1 | F8: 5 | H8: 13 | I8: 0.5384615385 | J8: 0.07692307692 | K8: 0.3846153846
A9: MUNICIPAL SPECIFIC | B9: 10 | C9: 1 | E9: 4 | F9: 4 | H9: 19 | I9: 0.5263157895 | J9: 0.05263157895 | K9: 0.4210526316
A10: PROVINCIAL REQUESTS | B10: 17 | C10: 15 | D10: 2 | E10: 3 | G10: 2 | H10: 39 | I10: 0.4358974359 | J10: 0.4871794872 | K10: 0.07692307692
A11: MUNICIPAL CORRESPONDENCE | B11: 7 | C11: 5 | D11: 3 | E11: 4 | H11: 19 | I11: 0.3684210526 | J11: 0.4210526316 | K11: 0.2105263158
A12: PROVINCIAL SPECIFIC | B12: 13 | C12: 6 | D12: 5 | E12: 3 | F12: 9 | G12: 3 | H12: 39 | I12: 0.3333333333 | J12: 0.358974359 | K12: 0.3076923077
A13: PROVINCIAL REFUGEES | B13: 4 | C13: 3 | E13: 4 | F13: 1 | G13: 1 | H13: 13 | I13: 0.3076923077 | J13: 0.3076923077 | K13: 0.3846153846
A14: ALTERNATIVE FEDERAL | B14: 1 | C14: 2 | F14: 1 | H14: 4 | I14: 0.25 | J14: 0.5 | K14: 0.25
A15: FEDERAL CONTRACTS | B15: 6 | C15: 13 | D15: 1 | G15: 3 | H15: 23 | I15: 0.2608695652 | J15: 0.7391304348 | K15: 0
A16: FEDERAL CORRESPONDENCE | B16: 5 | C16: 7 | D16: 2 | G16: 10 | H16: 24 | I16: 0.2083333333 | J16: 0.7916666667 | K16: 0
A17: FEDERAL SPECIFIC | B17: 5 | C17: 7 | D17: 1 | F17: 2 | G17: 9 | H17: 24 | I17: 0.2083333333 | J17: 0.7083333333 | K17: 0.08333333333
A18: FEDERAL REQUESTS | B18: 3 | C18: 14 | G18: 7 | H18: 24 | I18: 0.125 | J18: 0.875 | K18: 0
A19: MUNICIPAL MARRIAGE | B19: 2 | C19: 3 | D19: 1 | E19: 1 | F19: 12 | H19: 19 | I19: 0.1052631579 | J19: 0.2105263158 | K19: 0.6842105263
A20: FEDERAL TRUMP | C20: 3 | D20: 2 | F20: 5 | G20: 10 | H20: 20 | I20: 0 | J20: 0.75 | K20: 0.25
A22: Totals | B22: =SUM(B2:B21) -> 196 | C22: =SUM(C2:C21) -> 90 | D22: 25 | E22: 26 | F22: 46 | G22: 45 | H22: 428 | I22: =B22/H22 -> 0.4579439252 | J22: =SUM(C22:D22,G22)/H22 -> 0.3738317757 | K22: =SUM(E22:F22)/H22 -> 0.1682242991

Sheet Table5A_indrequetststime
A1: Level and request | B1: 10 days or fewer | C1: 11 to 20 days | D1: 21 to 30 days | E1: 31 to 45 days | F1: 46 to 60 days | G1: More than 60 days | H1: No decision by audit close | I1: Total tabulated | J1: Not tabulated | K1: Within 30 days | L1: More than 30 days/ no decision at audit end
A2: MUNICIPAL MARRIAGE | B2: 14 | C2: 3 | D2: 2 | I2: 19 | K2: 1 | L2: 0
A3: PROVINCIAL JAIL BIRTHS | B3: 3 | C3: 5 | D3: 5 | I3: 13 | K3: 1 | L3: 0
A4: MUNICIPAL LEAVE | B4: 8 | C4: 5 | D4: 5 | E4: 1 | I4: 19 | K4: 0.9473684211 | L4: 0.05263157895
A5: MUNICIPAL REQUESTS | B5: 8 | C5: 4 | D5: 6 | G5: 1 | I5: 19 | K5: 0.9473684211 | L5: 0.05263157895
A6: MUNICIPAL SPECIFIC | B6: 6 | C6: 4 | D6: 7 | E6: 1 | G6: 1 | I6: 19 | K6: 0.8947368421 | L6: 0.1052631579
A7: MUNICIPAL TRIPS | B7: 7 | C7: 4 | D7: 5 | E7: 3 | I7: 19 | K7: 0.8421052632 | L7: 0.1578947368
A8: PROVINCIAL HEALTH CARDS | B8: 1 | C8: 3 | D8: 6 | E8: 2 | G8: 1 | I8: 13 | K8: 0.7692307692 | L8: 0.2307692308
A9: PROVINCIAL TRIPS | B9: 10 | C9: 3 | D9: 15 | E9: 4 | F9: 2 | G9: 5 | I9: 39 | K9: 0.7179487179 | L9: 0.2820512821
A10: MUNICIPAL CORRESPONDENCE | B10: 8 | C10: 2 | D10: 3 | E10: 1 | F10: 4 | G10: 1 | I10: 19 | K10: 0.6842105263 | L10: 0.3157894737
A11: PROVINCIAL SPECIFIC | B11: 5 | C11: 7 | D11: 14 | E11: 6 | F11: 2 | G11: 1 | H11: 3 | I11: 38 | J11: 1 | K11: 0.6842105263 | L11: 0.3157894737
A12: PROVINCIAL LEAVE | B12: 3 | C12: 5 | D12: 17 | E12: 7 | F12: 1 | G12: 4 | I12: 37 | J12: 2 | K12: 0.6756756757 | L12: 0.3243243243
A13: PROVINCIAL REQUESTS | B13: 3 | C13: 12 | D13: 7 | E13: 9 | G13: 5 | H13: 2 | I13: 38 | J13: 1 | K13: 0.5789473684 | L13: 0.4210526316
A14: ALTERNATIVE FEDERAL | D14: 2 | G14: 2 | I14: 4 | K14: 0.5 | L14: 0.5
A15: PROVINCIAL REFUGEES | B15: 1 | C15: 1 | D15: 3 | E15: 2 | F15: 2 | G15: 2 | H15: 1 | I15: 12 | J15: 1 | K15: 0.4166666667 | L15: 0.5833333333
A16: FEDERAL REQUESTS | B16: 1 | C16: 1 | D16: 6 | E16: 1 | F16: 3 | G16: 5 | H16: 7 | I16: 24 | K16: 0.3333333333 | L16: 0.6666666667
A17: FEDERAL CONTRACTS | C17: 1 | D17: 6 | E17: 8 | F17: 1 | G17: 4 | H17: 3 | I17: 23 | K17: 0.3043478261 | L17: 0.6956521739
A18: FEDERAL TRUMP | B18: 2 | C18: 1 | D18: 2 | E18: 1 | G18: 4 | H18: 10 | I18: 20 | K18: 0.25 | L18: 0.75
A19: FEDERAL CORRESPONDENCE | C19: 3 | D19: 2 | E19: 1 | G19: 8 | H19: 10 | I19: 24 | K19: 0.2083333333 | L19: 0.7916666667
A20: FEDERAL SPECIFIC | D20: 5 | E20: 1 | F20: 2 | G20: 7 | H20: 9 | I20: 24 | K20: 0.2083333333 | L20: 0.7916666667
A22: Totals | B22: =SUM(B2:B21) -> 80 | C22: =SUM(C2:C21) -> 64 | D22: 118 | E22: 48 | F22: 17 | G22: 51 | H22: 45 | I22: 423 | J22: 5 | K22: =SUM(B22:D22)/I22 -> 0.6193853428 | L22: =SUM(E22:H22)/I22 -> 0.3806146572

Sheet Tables6&7New_AvgDTD_byLevelDTyp
A1: Table 6
A2: Decision | B2: Average days to decision | C2: Requests
A3: Denied in Part | B3: 43.6 | C3: 89
A4: Denied in Full | B4: 29.9 | C4: 25
A5: Released in Full/Publicly available | B5: 26.1 | C5: 192
A6: Fee Estimate | B6: 21.5 | C6: 26
A7: No Records | B7: 16 | C7: 46
A10: Table 7
A11: Level | B11: Decision | C11: Average days to decision | D11: Requests
A12: Federal | B12: Denied in Part | C12: 56.41304348 | D12: 46
A13: Federal | B13: Denied in Full | C13: 48.83333333 | D13: 6
A14: Federal | B14: Released in Full/Publicly available | C14: 42.25 | D14: 20
A15: Provincial | B15: Denied in Part | C15: 34.89655172 | D15: 29
A16: Provincial | B16: Denied in Full | C16: 29.13333333 | D16: 15
A17: Provincial | B17: Released in Full/Publicly available | C17: 27.73584906 | D17: 106
A18: Provincial | B18: No Records | C18: 22.95454545 | D18: 22
A19: Municipal | B19: Fee Estimate | C19: 21.78571429 | D19: 14
A20: Provincial | B20: Fee Estimate | C20: 21.08333333 | D20: 12
A21: Municipal | B21: Denied in Part | C21: 19.28571429 | D21: 14
A22: Municipal | B22: Released in Full/Publicly available | C22: 18.71212121 | D22: 66
A23: Federal | B23: No Records | C23: 17.125 | D23: 8
A24: Municipal | B24: No Records | C24: 5.875 | D24: 16
A25: Municipal | B25: Denied in Full | C25: 4 | D25: 4

Sheet Table12_AllRequestsAppendixA
A1: Level | B1: Province | C1: Institution | D1: Request | E1: Days to process | F1: Decision | G1: Fee Est | H1: Time ext | I1: id
A2: Federal | B2: Fed | C2: Agriculture and Agri-Food Canada | D2: FEDERAL CORRESPONDENCE | E2: 91 | F2: Released In Full | H2: 120 days | I2: 1
A3: Federal | B3: Fed | C3: Agriculture and Agri-Food Canada | D3: FEDERAL CONTRACTS | E3: 33 | F3: Denied In Part | I3: 2
A4: Federal | B4: Fed | C4: Agriculture and Agri-Food Canada | D4: FEDERAL SPECIFIC | E4: 122 | F4: Denied In Part | H4: 120 days | I4: 3
A5: Federal | B5: Fed | C5: Agriculture and Agri-Food Canada | D5: FEDERAL TRUMP | F5: No Decision By Audit Close | H5: 150 days | I5: 4
A6: Federal | B6: Fed | C6: Agriculture and Agri-Food Canada | D6: FEDERAL REQUESTS | E6: 29 | F6: Denied In Part | I6: 5
A7: Federal | B7: Fed | C7: Canada Border Services Agency | D7: FEDERAL CONTRACTS | E7: 36 | F7: Denied In Part | I7: 6
A8: Federal | B8: Fed | C8: Canada Border Services Agency | D8: FEDERAL SPECIFIC | F8: No Decision By Audit Close | I8: 7
A9: Federal | B9: Fed | C9: Canada Border Services Agency | D9: FEDERAL CORRESPONDENCE | F9: No Decision By Audit Close | I9: 8
A10: Federal | B10: Fed | C10: Canada Border Services Agency | D10: FEDERAL TRUMP | F10: No Decision By Audit Close | I10: 9
A11: Federal | B11: Fed | C11: Canada Border Services Agency | D11: FEDERAL REQUESTS | F11: No Decision By Audit Close | H11: 30 days | I11: 10
A12: Federal | B12: Fed | C12: Canada Post Corporation | D12: ALTERNATIVE FEDERAL | E12: 22 | F12: No Records | I12: 11
A13: Federal | B13: Fed | C13: Canada Post Corporation | D13: FEDERAL CONTRACTS | E13: 39 | F13: Denied In Full | I13: 12
A14: Federal | B14: Fed | C14: Canada Post Corporation | D14: FEDERAL REQUESTS | E14: 68 | F14: Denied In Part | H14: 30 days | I14: 13
A15: Federal | B15: Fed | C15: Canada Post Corporation | D15: FEDERAL SPECIFIC | E15: 60 | F15: Denied In Full | H15: 30 days | I15: 14
A16: Federal | B16: Fed | C16: Canada Post Corporation | D16: FEDERAL CORRESPONDENCE | E16: 61 | F16: Denied In Full | H16: 30 days | I16: 15
A17: Federal | B17: Fed | C17: Canada Revenue Agency | D17: FEDERAL CORRESPONDENCE | E17: 91 | F17: Denied In Part | I17: 16
A18: Federal | B18: Fed | C18: Canada Revenue Agency | D18: FEDERAL REQUESTS | E18: 53 | F18: Denied In Part | H18: 30 days | I18: 17
A19: Federal | B19: Fed | C19: Canada Revenue Agency | D19: FEDERAL SPECIFIC | E19: 56 | F19: Released In Full | I19: 18
A20: Federal | B20: Fed | C20: Canada Revenue Agency | D20: FEDERAL CONTRACTS | E20: 30 | F20: Denied In Part | I20: 19
A21: Federal | B21: Fed | C21: Canada Revenue Agency | D21: FEDERAL TRUMP | E21: 94 | F21: Denied In Part | H21: 60 days | I21: 20
A22: Federal | B22: Fed | C22: CBC | D22: FEDERAL CORRESPONDENCE | E22: 62 | F22: Released In Full | H22: 35 days | I22: 21
A23: Federal | B23: Fed | C23: CBC | D23: ALTERNATIVE FEDERAL | E23: 29 | F23: Denied In Part | I23: 22
A24: Federal | B24: Fed | C24: CBC | D24: FEDERAL CONTRACTS | E24: 49 | F24: Denied In Part | H24: 20 days | I24: 23
A25: Federal | B25: Fed | C25: CBC | D25: FEDERAL REQUESTS | E25: 21 | F25: Denied In Part | I25: 24
A26: Federal | B26: Fed | C26: CBC | D26: FEDERAL SPECIFIC | E26: 25 | F26: No Records | I26: 25
A27: Federal | B27: Fed | C27: Canadian Security Intelligence Service | D27: FEDERAL CORRESPONDENCE | E27: 35 | F27: Denied In Full | I27: 26
A28: Federal | B28: Fed | C28: Canadian Security Intelligence Service | D28: FEDERAL CONTRACTS | E28: 35 | F28: Denied In Part | I28: 27
A29: Federal | B29: Fed | C29: Canadian Security Intelligence Service | D29: FEDERAL TRUMP | E29: 31 | F29: Denied In Full | I29: 28
A30: Federal | B30: Fed | C30: Canadian Security Intelligence Service | D30: FEDERAL REQUESTS | E30: 43 | F30: Denied In Part | H30: 30 days | I30: 29
A31: Federal | B31: Fed | C31: Canadian Security Intelligence Service | D31: FEDERAL SPECIFIC | E31: 93 | F31: Denied In Part | H31: 90 days | I31: 30
A32: Federal | B32: Fed | C32: Communications Security Establishment | D32: FEDERAL REQUESTS | E32: 23 | F32: Denied In Part | I32: 31
A33: Federal | B33: Fed | C33: Communications Security Establishment | D33: FEDERAL TRUMP | E33: 107 | F33: Denied In Part | H33: 30 days | I33: 32
A34: Federal | B34: Fed | C34: Communications Security Establishment | D34: FEDERAL CORRESPONDENCE | E34: 14 | F34: Denied In Part | I34: 33
A35: Federal | B35: Fed | C35: Communications Security Establishment | D35: FEDERAL CONTRACTS | E35: 43 | F35: Denied In Part | I35: 34
A36: Federal | B36: Fed | C36: Communications Security Establishment | D36: FEDERAL SPECIFIC | E36: 22 | F36: Denied In Part | I36: 35
A37: Federal | B37: Fed | C37: Correctional Service Canada | D37: FEDERAL CONTRACTS | F37: Removed from Audit | H37: 45 days | I37: 36
A38: Federal | B38: Fed | C38: Correctional Service Canada | D38: ALTERNATIVE FEDERAL | E38: 81 | F38: Denied In Part | H38: 30 days | I38: 37
A39: Federal | B39: Fed | C39: Correctional Service Canada | D39: FEDERAL SPECIFIC | F39: No Decision By Audit Close | H39: 30 days | I39: 38
A40: Federal | B40: Fed | C40: Correctional Service Canada | D40: FEDERAL REQUESTS | F40: No Decision By Audit Close | I40: 39
A41: Federal | B41: Fed | C41: Correctional Service Canada | D41: FEDERAL CORRESPONDENCE | F41: No Decision By Audit Close | I41: 40
A42: Federal | B42: Fed | C42: Department of Finance Canada | D42: FEDERAL CORRESPONDENCE | E42: 60 | F42: Denied In Part | I42: 41
A43: Federal | B43: Fed | C43: Department of Finance Canada | D43: FEDERAL SPECIFIC | E43: 21 | F43: No Records | I43: 42
A44: Federal | B44: Fed | C44: Department of Finance Canada | D44: FEDERAL REQUESTS | E44: 23 | F44: Released In Full | I44: 43
A45: Federal | B45: Fed | C45: Department of Finance Canada | D45: FEDERAL TRUMP | E45: 21 | F45: No Records | I45: 44
A46: Federal | B46: Fed | C46: Department of Finance Canada | D46: FEDERAL CONTRACTS | E46: 20 | F46: Denied In Part | I46: 45
A47: Federal | B47: Fed | C47: Department of National Defence | D47: FEDERAL SPECIFIC | F47: No Decision By Audit Close | I47: 46
A48: Federal | B48: Fed | C48: Department of National Defence | D48: FEDERAL REQUESTS | F48: No Decision By Audit Close | I48: 47
A49: Federal | B49: Fed | C49: Department of National Defence | D49: FEDERAL CONTRACTS | F49: No Decision By Audit Close | H49: 60 days | I49: 48
A50: Federal | B50: Fed | C50: Department of National Defence | D50: FEDERAL TRUMP | F50: No Decision By Audit Close | I50: 49
A51: Federal | B51: Fed | C51: Department of National Defence | D51: FEDERAL CORRESPONDENCE | F51: No Decision By Audit Close | I51: 50
A52: Federal | B52: Fed | C52: Employment and Social Development Canada | D52: FEDERAL TRUMP | F52: No Decision By Audit Close | I52: 51
A53: Federal | B53: Fed | C53: Employment and Social Development Canada | D53: FEDERAL REQUESTS | F53: No Decision By Audit Close | I53: 52
A54: Federal | B54: Fed | C54: Employment and Social Development Canada | D54: FEDERAL SPECIFIC | E54: 31 | F54: Released In Full | I54: 53
A55: Federal | B55: Fed | C55: Employment and Social Development Canada | D55: FEDERAL CONTRACTS | E55: 32 | F55: Denied In Part | I55: 54
A56: Federal | B56: Fed | C56: Employment and Social Development Canada | D56: FEDERAL CORRESPONDENCE | E56: 107 | F56: Denied In Part | H56: 60 days | I56: 55
A57: Federal | B57: Fed | C57: Environment and Climate Change Canada | D57: FEDERAL TRUMP | F57: No Decision By Audit Close | H57: 120 days | I57: 56
A58: Federal | B58: Fed | C58: Environment and Climate Change Canada | D58: FEDERAL REQUESTS | E58: 91 | F58: Denied In Part | H58: 60 days | I58: 57
A59: Federal | B59: Fed | C59: Environment and Climate Change Canada | D59: FEDERAL SPECIFIC | F59: No Decision By Audit Close | H59: 60 days | I59: 58
A60: Federal | B60: Fed | C60: Environment and Climate Change Canada | D60: FEDERAL CORRESPONDENCE | F60: No Decision By Audit Close | H60: 60 days | I60: 59
A61: Federal | B61: Fed | C61: Environment and Climate Change Canada | D61: FEDERAL CONTRACTS | E61: 76 | F61: Released In Full | H61: 60 days | I61: 60
A62: Federal | B62: Fed | C62: Fisheries and Oceans Canada | D62: FEDERAL CORRESPONDENCE | E62: 29 | F62: Released In Full | I62: 61
A63: Federal | B63: Fed | C63: Fisheries and Oceans Canada | D63: FEDERAL CONTRACTS | E63: 33 | F63: Released In Full | I63: 62
A64: Federal | B64: Fed | C64: Fisheries and Oceans Canada | D64: FEDERAL TRUMP | E64: 67 | F64: Denied In Full | H64: 90 days | I64: 63
A65: Federal | B65: Fed | C65: Fisheries and Oceans Canada | D65: FEDERAL SPECIFIC | E65: 30 | F65: Released In Full | I65: 64
A66: Federal | B66: Fed | C66: Fisheries and Oceans Canada | D66: FEDERAL REQUESTS | E66: 30 | F66: Released In Full | I66: 65
A67: Federal | B67: Fed | C67: Global Affairs Canada | D67: FEDERAL CONTRACTS | E67: 68 | F67: Denied In Part | H67: 30 days | I67: 66
A68: Federal | B68: Fed | C68: Global Affairs Canada | D68: FEDERAL REQUESTS | F68: No Decision By Audit Close | H68: 60 days | I68: 67
A69: Federal | B69: Fed | C69: Global Affairs Canada | D69: FEDERAL SPECIFIC | F69: No Decision By Audit Close | H69: 30 days | I69: 68
A70: Federal | B70: Fed | C70: Global Affairs Canada | D70: FEDERAL CORRESPONDENCE | E70: 68 | F70: Denied In Part | I70: 69
A71: Federal | B71: Fed | C71: Global Affairs Canada | D71: FEDERAL TRUMP | E71: 121 | F71: Denied In Part | H71: 30 days | I71: 70
A72: Federal | B72: Fed | C72: Health Canada | D72: FEDERAL TRUMP | F72: No Decision By Audit Close | H72: 120 days | I72: 71
A73: Federal | B73: Fed | C73: Health Canada | D73: FEDERAL CORRESPONDENCE | F73: No Decision By Audit Close | H73: 120 days | I73: 72
A74: Federal | B74: Fed | C74: Health Canada | D74: FEDERAL CONTRACTS | F74: No Decision By Audit Close | H74: 30 days | I74: 73
A75: Federal | B75: Fed | C75: Health Canada | D75: FEDERAL REQUESTS | F75: No Decision By Audit Close | I75: 74
A76: Federal | B76: Fed | C76: Health Canada | D76: FEDERAL SPECIFIC | E76: 64 | F76: Released In Full | H76: 30 days | I76: 75
A77: Federal | B77: Fed | C77: Immigration, Refugees and Citizenship Canada | D77: FEDERAL CORRESPONDENCE | F77: No Decision By Audit Close | H77: 180 days | I77: 76
A78: Federal | B78: Fed | C78: Immigration, Refugees and Citizenship Canada | D78: FEDERAL REQUESTS | E78: 85 | F78: Denied In Part | H78: 30 days | I78: 77
A79: Federal | B79: Fed | C79: Immigration, Refugees and Citizenship Canada | D79: FEDERAL CONTRACTS | E79: 28 | F79: Denied In Part | I79: 78
A80: Federal | B80: Fed | C80: Immigration, Refugees and Citizenship Canada | D80: FEDERAL SPECIFIC | E80: 86 | F80: Denied In Part | H80: 60 days | I80: 79
A81: Federal | B81: Fed | C81: Immigration, Refugees and Citizenship Canada | D81: FEDERAL TRUMP | F81: No Decision By Audit Close | H81: 120 days | I81: 80
A82: Federal | B82: Fed | C82: Indigenous and Northern Affairs Canada | D82: FEDERAL CONTRACTS | E82: 21 | F82: Denied In Part | I82: 81
A83: Federal | B83: Fed | C83: Indigenous and Northern Affairs Canada | D83: FEDERAL TRUMP | E83: 23 | F83: No Records | I83: 82
A84: Federal | B84: Fed | C84: Indigenous and Northern Affairs Canada | D84: FEDERAL SPECIFIC | F84: No Decision By Audit Close | H84: 120 days | I84: 83
A85: Federal | B85: Fed | C85: Indigenous and Northern Affairs Canada | D85: FEDERAL REQUESTS | E85: 62 | F85: Denied In Part | H85: 15 days | I85: 84
A86: Federal | B86: Fed | C86: Indigenous and Northern Affairs Canada | D86: FEDERAL CORRESPONDENCE | F86: No Decision By Audit Close | H86: 90 days | I86: 85
A87: Federal | B87: Fed | C87: Parks Canada | D87: FEDERAL SPECIFIC | E87: 98 | F87: Denied In Part | H87: 60 days | I87: 86
A88: Federal | B88: Fed | C88: Parks Canada | D88: FEDERAL REQUESTS | E88: 9 | F88: Denied In Part | I88: 87
A89: Federal | B89: Fed | C89: Parks Canada | D89: FEDERAL CONTRACTS | E89: 27 | F89: Released In Full | I89: 88
A90: Federal | B90: Fed | C90: Parks Canada | D90: FEDERAL TRUMP | E90: 7 | F90: No Records | I90: 89
A91: Federal | B91: Fed | C91: Parks Canada | D91: FEDERAL CORRESPONDENCE | E91: 19 | F91: Released In Full | I91: 90
A92: Federal | B92: Fed | C92: Privy Council Office | D92: FEDERAL CORRESPONDENCE | F92: No Decision By Audit Close | H92: 90 days | I92: 91
A93: Federal | B93: Fed | C93: Privy Council Office | D93: FEDERAL TRUMP | F93: No Decision By Audit Close | H93: 180 days | I93: 92
A94: Federal | B94: Fed | C94: Privy Council Office | D94: FEDERAL CONTRACTS | E94: 63 | F94: Denied In Part | H94: 30 days | I94: 93
A95: Federal | B95: Fed | C95: Privy Council Office | D95: FEDERAL SPECIFIC | E95: 95 | F95: Denied In Part | H95: 120 days | I95: 94
A96: Federal | B96: Fed | C96: Privy Council Office | D96: FEDERAL REQUESTS | E96: 62 | F96: Denied In Part | H96: 30 days | I96: 95
A97: Federal | B97: Fed | C97: Public Service Commission | D97: FEDERAL CONTRACTS | E97: 40 | F97: Released In Full | I97: 96
A98: Federal | B98: Fed | C98: Public Services and Procurement Canada | D98: FEDERAL TRUMP | E98: 15 | F98: No Records | I98: 97
A99: Federal | B99: Fed | C99: Public Services and Procurement Canada | D99: FEDERAL REQUESTS | E99: 23 | F99: Denied In Part | I99: 98
A100: Federal | B100: Fed | C100: Public Services and Procurement Canada | D100: FEDERAL CORRESPONDENCE | E100: 30 | F100: Released In Full | I100: 99
A101: Federal | B101: Fed | C101: Public Services and Procurement Canada | D101: FEDERAL SPECIFIC | E101: 24 | F101: Released In Full | I101: 100
A102: Federal | B102: Fed | C102: Royal Canadian Mounted Police | D102: FEDERAL TRUMP | F102: No Decision By Audit Close | I102: 101
A103: Federal | B103: Fed | C103: Royal Canadian Mounted Police | D103: FEDERAL SPECIFIC | F103: No Decision By Audit Close | I103: 102
A104: Federal | B104: Fed | C104: Royal Canadian Mounted Police | D104: FEDERAL CONTRACTS | F104: No Decision By Audit Close | I104: 103
A105: Federal | B105: Fed | C105: Royal Canadian Mounted Police | D105: FEDERAL REQUESTS | F105: No Decision By Audit Close | I105: 104
A106: Federal | B106: Fed | C106: Royal Canadian Mounted Police | D106: FEDERAL CORRESPONDENCE | F106: No Decision By Audit Close | I106: 105
A107: Federal | B107: Fed | C107: Shared Services Canada | D107: FEDERAL REQUESTS | E107: 14 | F107: Denied In Part | I107: 106
A108: Federal | B108: Fed | C108: Shared Services Canada | D108: FEDERAL CONTRACTS | E108: 30 | F108: Released In Full | I108: 107
A109: Federal | B109: Fed | C109: Shared Services Canada | D109: FEDERAL TRUMP | E109: 3 | F109: No Records | I109: 108
A110: Federal | B110: Fed | C110: Shared Services Canada | D110: FEDERAL SPECIFIC | F110: No Decision By Audit Close | H110: 120 days | I110: 109
A111: Federal | B111: Fed | C111: Shared Services Canada | D111: FEDERAL CORRESPONDENCE | E111: 15 | F111: Denied In Part | I111: 110
A112: Federal | B112: Fed | C112: Transport Canada | D112: FEDERAL REQUESTS | E112: 58 | F112: Released In Full | H112: 30 days | I112: 111
A113: Federal | B113: Fed | C113: Transport Canada | D113: FEDERAL SPECIFIC | F113: No Decision By Audit Close | I113: 112
A114: Federal | B114: Fed | C114: Transport Canada | D114: FEDERAL CONTRACTS | E114: 32 | F114: Released In Full | I114: 113
A115: Federal | B115: Fed | C115: Transport Canada | D115: FEDERAL TRUMP | F115: No Decision By Audit Close | I115: 114
A116: Federal | B116: Fed | C116: Transport Canada | D116: FEDERAL CORRESPONDENCE | F116: No Decision By Audit Close | I116: 115
A117: Federal | B117: Fed | C117: Via Rail Canada | D117: FEDERAL CORRESPONDENCE | E117: 63 | F117: Denied In Part | H117: 30 days | I117: 116
A118: Federal | B118: Fed | C118: Via Rail Canada | D118: FEDERAL CONTRACTS | E118: 81 | F118: Denied In Part | H118: 30 days | I118: 117
A119: Federal | B119: Fed | C119: Via Rail Canada | D119: FEDERAL SPECIFIC | E119: 57 | F119: Denied In Part | I119: 118
A120: Federal | B120: Fed | C120: Via Rail Canada | D120: FEDERAL REQUESTS | E120: 50 | F120: Denied In Part | I120: 119
A121: Federal | B121: Fed | C121: Via Rail Canada | D121: ALTERNATIVE FEDERAL | E121: 60 | F121: Released In Full | I121: 120
A122: Municipal | B122: AB | C122: City of Calgary | D122: MUNICIPAL REQUESTS | E122: 63 | F122: Released In Full | H122: 30 days | I122: 121
A123: Municipal | B123: AB | C123: City of Calgary | D123: MUNICIPAL TRIPS | E123: 25 | F123: Released In Full | I123: 122
A124: Municipal | B124: AB | C124: City of Calgary | D124: MUNICIPAL SPECIFIC | E124: 22 | F124: Released In Full | I124: 123
A125: Municipal | B125: AB | C125: City of Calgary | D125: MUNICIPAL MARRIAGE | E125: 7 | F125: No Records | I125: 124
A126: Municipal | B126: AB | C126: City of Calgary | D126: MUNICIPAL LEAVE | E126: 17 | F126: Released In Full | I126: 125
A127: Municipal | B127: AB | C127: City of Calgary | D127: MUNICIPAL CORRESPONDENCE | E127: 67 | F127: Denied In Part | H127: 30 days | I127: 126
A128: Municipal | B128: AB | C128: City of Edmonton | D128: MUNICIPAL CORRESPONDENCE | E128: 23 | F128: Released In Full | I128: 127
A129: Municipal | B129: AB | C129: City of Edmonton | D129: MUNICIPAL MARRIAGE | E129: 14 | F129: No Records | I129: 128
A130: Municipal | B130: AB | C130: City of Edmonton | D130: MUNICIPAL REQUESTS | E130: 29 | F130: Released In Full | I130: 129
A131: Municipal | B131: AB | C131: City of Edmonton | D131: MUNICIPAL LEAVE | E131: 23 | F131: Released In Full | I131: 130
A132: Municipal | B132: AB | C132: City of Edmonton | D132: MUNICIPAL SPECIFIC | E132: 27 | F132: Released In Full | I132: 131
A133: Municipal | B133: AB | C133: City of Edmonton | D133: MUNICIPAL TRIPS | E133: 28 | F133: Released In Full | I133: 132
A134: Municipal | B134: BC | C134: City of Vancouver | D134: MUNICIPAL SPECIFIC | E134: 18 | F134: Released In Full | I134: 133
A135: Municipal | B135: BC | C135: City of Vancouver | D135: MUNICIPAL LEAVE | E135: 3 | F135: Released In Full | I135: 134
A136: Municipal | B136: BC | C136: City of Vancouver | D136: MUNICIPAL MARRIAGE | E136: 0 | F136: No Records | I136: 135
A137: Municipal | B137: BC | C137: City of Vancouver | D137: MUNICIPAL CORRESPONDENCE | E137: 3 | F137: Fee Estimate | G137: 60 | I137: 136
A138: Municipal | B138: BC | C138: City of Vancouver | D138: MUNICIPAL REQUESTS | E138: 11 | F138: Denied In Part | I138: 137
A139: Municipal | B139: BC | C139: City of Vancouver | D139: MUNICIPAL TRIPS | E139: 4 | F139: Released In Full | I139: 138
A140: Municipal | B140: BC | C140: City of Victoria | D140: MUNICIPAL MARRIAGE | E140: 3 | F140: Released In Full | I140: 139
A141: Municipal | B141: BC | C141: City of Victoria | D141: MUNICIPAL LEAVE | E141: 3 | F141: Denied In Part | I141: 140
A142: Municipal | B142: BC | C142: City of Victoria | D142: MUNICIPAL REQUESTS | E142: 30 | F142: Released In Full | I142: 141
A143: Municipal | B143: BC | C143: City of Victoria | D143: MUNICIPAL SPECIFIC | E143: 34 | F143: Released In Full | I143: 142
A144: Municipal | B144: BC | C144: City of Victoria | D144: MUNICIPAL TRIPS | E144: 44 | F144: Released In Full | I144: 143
A145: Municipal | B145: BC | C145: City of Victoria | D145: MUNICIPAL CORRESPONDENCE | E145: 47 | F145: Released In Full | I145: 144
A146: Municipal | B146: MB | C146: City of Winnipeg | D146: MUNICIPAL REQUESTS | E146: 27 | F146: Released In Full | I146: 145
A147: Municipal | B147: MB | C147: City of Winnipeg | D147: MUNICIPAL SPECIFIC | E147: 62 | F147: Released In Full | H147: 30 days | I147: 146
A148: Municipal | B148: MB | C148: City of Winnipeg | D148: MUNICIPAL MARRIAGE | E148: 27 | F148: Released In Full | I148: 147
A149: Municipal | B149: MB | C149: City of Winnipeg | D149: MUNICIPAL LEAVE | E149: 29 | F149: Released In Full | I149: 148
A150: Municipal | B150: MB | C150: City of Winnipeg | D150: MUNICIPAL CORRESPONDENCE | E150: 55 | F150: Denied In Part | I150: 149
A151: Municipal | B151: MB | C151: City of Winnipeg | D151: MUNICIPAL TRIPS | E151: 30 | F151: Released In Full | I151: 150
A152: Municipal | B152: NB | C152: City of Fredericton | D152: MUNICIPAL TRIPS | E152: 14 | F152: Released In Full | I152: 151
A153: Municipal | B153: NB | C153: City of Fredericton | D153: MUNICIPAL SPECIFIC | E153: 29 | F153: Denied In Part | I153: 152
A154: Municipal | B154: NB | C154: City of Fredericton | D154: MUNICIPAL CORRESPONDENCE | E154: 29 | F154: Released In Full | I154: 153
A155: Municipal | B155: NB | C155: City of Fredericton | D155: MUNICIPAL LEAVE | E155: 11 | F155: Released In Full | I155: 154
A156: Municipal | B156: NB | C156: City of Fredericton | D156: MUNICIPAL MARRIAGE | E156: 0 | F156: No Records | I156: 155
A157: Municipal | B157: NB | C157: City of Fredericton | D157: MUNICIPAL REQUESTS | E157: 18 | F157: Released In Full | I157: 156
A158: Municipal | B158: NB | C158: City of Moncton | D158: MUNICIPAL REQUESTS | E158: 7 | F158: Released In Full | I158: 157
A159: Municipal | B159: NB | C159: City of Moncton | D159: MUNICIPAL SPECIFIC | E159: 3 | F159: Released In Full | I159: 158
A160: Municipal | B160: NB | C160: City of Moncton | D160: MUNICIPAL MARRIAGE | E160: 4 | F160: No Records | I160: 159
A161: Municipal | B161: NB | C161: City of Moncton | D161: MUNICIPAL TRIPS | E161: 11 | F161: Released In Full | I161: 160
A162: Municipal | B162: NB | C162: City of Moncton | D162: MUNICIPAL LEAVE | E162: 15 | F162: Released In Full | I162: 161
A163: Municipal | B163: NB | C163: City of Moncton | D163: MUNICIPAL CORRESPONDENCE | E163: 29 | F163: Released In Full | I163: 162
A164: Municipal | B164: NB | C164: City of Saint John | D164: MUNICIPAL SPECIFIC | E164: 6 | F164: No Records | I164: 163
A165: Municipal | B165: NB | C165: City of Saint John | D165: MUNICIPAL MARRIAGE | E165: 5 | F165: No Records | I165: 164
A166: Municipal | B166: NB | C166: City of Saint John | D166: MUNICIPAL CORRESPONDENCE | E166: 7 | F166: Denied In Part | I166: 165
A167: Municipal | B167: NB | C167: City of Saint John | D167: MUNICIPAL LEAVE | E167: 7 | F167: Released In Full | I167: 166
A168: Municipal | B168: NB | C168: City of Saint John | D168: MUNICIPAL REQUESTS | E168: 4 | F168: Released In Full | I168: 167
A169: Municipal | B169: NB | C169: City of Saint John | D169: MUNICIPAL TRIPS | E169: 1 | F169: Released In Full | I169: 168
A170: Municipal | B170: NL | C170: City of St. John's | D170: MUNICIPAL MARRIAGE | E170: 12 | F170: Denied In Part | I170: 169
A171: Municipal | B171: NL | C171: City of St. John's | D171: MUNICIPAL LEAVE | E171: 11 | F171: Released In Full | I171: 170
A172: Municipal | B172: NL | C172: City of St. John's | D172: MUNICIPAL REQUESTS | E172: 3 | F172: Released In Full | I172: 171
A173: Municipal | B173: NL | C173: City of St. John's | D173: MUNICIPAL TRIPS | E173: 5 | F173: Released In Full | I173: 172
A174: Municipal | B174: NL | C174: City of St. John's | D174: MUNICIPAL CORRESPONDENCE | E174: 1 | F174: Released In Full | I174: 173
A175: Municipal | B175: NL | C175: City of St. John's | D175: MUNICIPAL SPECIFIC | E175: 10 | F175: Fee Estimate | G175: 500 | I175: 174
A176: Municipal | B176: NS | C176: Halifax Regional Municipality | D176: MUNICIPAL CORRESPONDENCE | E176: 14 | F176: Denied In Part | I176: 175
A177: Municipal | B177: NS | C177: Halifax Regional Municipality | D177: MUNICIPAL LEAVE | E177: 0 | F177: Released In Full | I177: 176
A178: Municipal | B178: NS | C178: Halifax Regional Municipality | D178: MUNICIPAL TRIPS | E178: 10 | F178: Released In Full | I178: 177
A179: Municipal | B179: NS | C179: Halifax Regional Municipality | D179: MUNICIPAL SPECIFIC | E179: 8 | F179: Released In Full | I179: 178
A180: Municipal | B180: NS | C180: Halifax Regional Municipality | D180: MUNICIPAL MARRIAGE | E180: 1 | F180: No Records | I180: 179
A181: Municipal | B181: NS | C181: Halifax Regional Municipality | D181: MUNICIPAL REQUESTS | E181: 18 | F181: Released In Full | I181: 180
A182: Municipal | B182: ON | C182: City of Hamilton | D182: MUNICIPAL LEAVE | E182: 25 | F182: Nominal Fee | G182: 22.9 | I182: 181
A183: Municipal | B183: ON | C183: City of Hamilton | D183: MUNICIPAL MARRIAGE | E183: 2 | F183: No Records | I183: 182
A184: Municipal | B184: ON | C184: City of Hamilton | D184: MUNICIPAL SPECIFIC | E184: 28 | F184: No Records | I184: 183
A185: Municipal | B185: ON | C185: City of Hamilton | D185: MUNICIPAL CORRESPONDENCE | E185: 55 | F185: Fee Estimate | G185: 87 | H185: 24 days | I185: 184
A186: Municipal | B186: ON | C186: City of Hamilton | D186: MUNICIPAL REQUESTS | E186: 28 | F186: Denied In Part | I186: 185
A187: Municipal | B187: ON | C187: City of Hamilton | D187: MUNICIPAL TRIPS | E187: 28 | F187: Fee Estimate | G187: 30.1 | I187: 186
A188: Municipal | B188: ON | C188: City of Ottawa | D188: MUNICIPAL MARRIAGE | E188: 20 | F188: Nominal Fee | G188: 10 | I188: 187
A189: Municipal | B189: ON | C189: City of Ottawa | D189: MUNICIPAL CORRESPONDENCE | E189: 44 | F189: Nominal Fee | G189: 9.6 | I189: 188
A190: Municipal | B190: ON | C190: City of Ottawa | D190: MUNICIPAL LEAVE | E190: 23 | F190: Released In Full | I190: 189
A191: Municipal | B191: ON | C191: City of Ottawa | D191: MUNICIPAL REQUESTS | E191: 29 | F191: Nominal Fee | G191: 10 | I191: 190
A192: Municipal | B192: ON | C192: City of Ottawa | D192: MUNICIPAL SPECIFIC | E192: 18 | F192: Released In Full | I192: 191
A193: Municipal | B193: ON | C193: City of Ottawa | D193: MUNICIPAL TRIPS | E193: 31 | F193: Released In Full | I193: 192
A194: Municipal | B194: ON | C194: City of Toronto | D194: MUNICIPAL SPECIFIC | E194: 27 | F194: No Records | I194: 193
A195: Municipal | B195: ON | C195: City of Toronto | D195: MUNICIPAL REQUESTS | E195: -1 | F195: Denied In Part | G195: 10 | I195: 194
A196: Municipal | B196: ON | C196: City of Toronto | D196: MUNICIPAL MARRIAGE | E196: 0 | F196: No Records | I196: 195
A197: Municipal | B197: ON | C197: City of Toronto | D197: MUNICIPAL TRIPS | E197: 10 | F197: Released In Full | I197: 196
A198: Municipal | B198: ON | C198: City of Toronto | D198: MUNICIPAL LEAVE | E198: 35 | F198: Released In Full | I198: 197
A199: Municipal | B199: ON | C199: City of Toronto | D199: MUNICIPAL CORRESPONDENCE | E199: 1 | F199: Denied In Full | I199: 198
A200: Municipal | B200: ON | C200: City of Windsor | D200: MUNICIPAL MARRIAGE | E200: 2 | F200: Denied In Full | I200: 199
... 231 more rows

Sheet Table11_DisclosureGrade
A1: Province | B1: Level | C1: Government body | D1: GRADE | E1: "No records" requests
A2: Fed | B2: Federal | C2: Federal government | D2: F | E2: 8
A3: AB | B3: Municipal | C3: City of Calgary | D3: A | E3: 1
A4: AB | B4: Municipal | C4: City of Edmonton | D4: A | E4: 1
A5: BC | B5: Municipal | C5: City of Victoria | D5: A | E5: 0
A6: MB | B6: Municipal | C6: City of Winnipeg | D6: A | E6: 0
A7: NB | B7: Municipal | C7: City of Fredericton | D7: A | E7: 1
A8: NB | B8: Municipal | C8: City of Moncton | D8: A | E8: 1
A9: NB | B9: Municipal | C9: City of Saint John | D9: A | E9: 2
A10: NS | B10: Municipal | C10: Halifax Regional Municipality | D10: A | E10: 1
A11: PE | B11: Municipal | C11: City of Charlottetown | D11: A | E11: 1
A12: BC | B12: Municipal | C12: City of Vancouver | D12: B | E12: 1
A13: NL | B13: Municipal | C13: City of St. John's | D13: B | E13: 0
A14: ON | B14: Municipal | C14: City of Ottawa | D14: B | E14: 0
A15: SK | B15: Municipal | C15: City of Regina | D15: B | E15: 1
A16: SK | B16: Municipal | C16: City of Saskatoon | D16: B | E16: 1
A17: ON | B17: Municipal | C17: City of Toronto | D17: C | E17: 2
A18: QC | B18: Municipal | C18: Ville de Montréal | D18: C | E18: 1
A19: QC | B19: Municipal | C19: Ville de Québec | D19: C | E19: 0
A20: ON | B20: Municipal | C20: City of Hamilton | D20: D | E20: 2
A21: ON | B21: Municipal | C21: City of Windsor | D21: F | E21: 0
A22: MB | B22: Provincial | C22: Manitoba government | D22: A | E22: 1
A23: NL | B23: Provincial | C23: Nfld and Labrador government | D23: A | E23: 2
A24: NT | B24: Provincial | C24: NWT government | D24: A | E24: 3
A25: PE | B25: Provincial | C25: PE government | D25: A | E25: 1
A26: BC | B26: Provincial | C26: BC government | D26: B | E26: 0
A27: NB | B27: Provincial | C27: New Brunswick government | D27: B | E27: 1
A28: NS | B28: Provincial | C28: Nova Scotia government | D28: B | E28: 3
A29: NU | B29: Provincial | C29: Nunavut government | D29: B | E29: 2
A30: SK | B30: Provincial | C30: Saskatchewan government | D30: C | E30: 0
A31: YK | B31: Provincial | C31: Yukon government | D31: C | E31: 4
A32: AB | B32: Provincial | C32: Alberta government | D32: D | E32: 1
A33: ON | B33: Provincial | C33: Ontario government | D33: D | E33: 2
A34: QC | B34: Provincial | C34: Quebec government | D34: D | E34: 2

Sheet TableF1_federalsection_time
A1: Institution | B1: Total requests filed | C1: Within 30 days with records | D1: Within 30 days/no records | E1: More than 30 days | F1: More than 60 days | G1: No decision by audit close
A2: Communications Security Establishment | B2: 5 | C2: 3 | E2: 1 | F2: 1 | G2: 0
A3: Fisheries and Oceans Canada | B3: 5 | C3: 3 | E3: 1 | F3: 1 | G3: 0
A4: Parks Canada | B4: 5 | C4: 3 | D4: 1 | E4: 0 | F4: 1 | G4: 0
A5: Public Services and Procurement Canada | B5: 4 | C5: 3 | D5: 1 | E5: 0 | F5: 0 | G5: 0
A6: Shared Services Canada | B6: 5 | C6: 3 | D6: 1 | E6: 0 | F6: 0 | G6: 1
A7: Canadian Broadcasting Corporation | B7: 5 | C7: 2 | D7: 1 | E7: 1 | F7: 1 | G7: 0
A8: Department of Finance Canada | B8: 5 | C8: 2 | D8: 2 | E8: 0 | F8: 1 | G8: 0
A9: Canada Revenue Agency | B9: 5 | C9: 1 | E9: 2 | F9: 2 | G9: 0
A10: Agriculture and Agri-Food Canada | B10: 5 | C10: 1 | E10: 1 | F10: 2 | G10: 1
A11: Immigration, Refugees and Citizenship Canada | B11: 5 | C11: 1 | E11: 0 | F11: 2 | G11: 2
A12: Indigenous and Northern Affairs Canada | B12: 5 | C12: 1 | D12: 1 | E12: 0 | F12: 1 | G12: 2
A13: Canadian Security Intelligence Service | B13: 5 | C13: 0 | E13: 4 | F13: 1 | G13: 0
A14: Via Rail Canada | B14: 5 | C14: 0 | E14: 2 | F14: 3 | G14: 0
A15: Employment and Social Development Canada | B15: 5 | C15: 0 | E15: 2 | F15: 1 | G15: 2
A16: Transport Canada | B16: 5 | C16: 0 | E16: 2 | F16: 0 | G16: 3
A17: Canada Post Corporation | B17: 5 | C17: 0 | D17: 1 | E17: 1 | F17: 3 | G17: 0
A18: Public Service Commission | B18: 1 | C18: 0 | E18: 1 | F18: 0 | G18: 0
A19: Canada Border Services Agency | B19: 5 | C19: 0 | E19: 1 | F19: 0 | G19: 4
A20: Global Affairs Canada | B20: 5 | C20: 0 | E20: 0 | F20: 3 | G20: 2
A21: Privy Council Office | B21: 5 | C21: 0 | E21: 0 | F21: 3 | G21: 2
A22: Environment and Climate Change Canada | B22: 5 | C22: 0 | E22: 0 | F22: 2 | G22: 3
A23: Correctional Service Canada | B23: 4 | C23: 0 | E23: 0 | F23: 1 | G23: 3
A24: Health Canada | B24: 5 | C24: 0 | E24: 0 | F24: 1 | G24: 4
A25: Department of National Defence | B25: 5 | C25: 0 | E25: 0 | F25: 0 | G25: 5
A26: Royal Canadian Mounted Police | B26: 5 | C26: 0 | E26: 0 | F26: 0 | G26: 5
A28: Totals | B28: 119 | C28: 23 | D28: 8 | E28: 19 | F28: 30 | G28: 39

Sheet TableF2_federalsectiondisclosur
A1: Level | B1: Institution | C1: 1Released in Full/Publicly available | D1: 2Denied in Part | E1: 3Denied in Full | F1: 6No Records | G1: No decision by audit close
A2: Federal | B2: Fisheries and Oceans Canada | C2: 4 | E2: 1
A3: Federal | B3: Parks Canada | C3: 2 | D3: 2 | F3: 1
A4: Federal | B4: Public Services and Procurement Canada | C4: 2 | D4: 1 | F4: 1
A5: Federal | B5: Transport Canada | C5: 2 | G5: 3
A6: Federal | B6: Via Rail Canada | C6: 1 | D6: 4
A7: Federal | B7: Canada Revenue Agency | C7: 1 | D7: 4
A8: Federal | B8: Agriculture and Agri-Food Canada | C8: 1 | D8: 3 | G8: 1
A9: Federal | B9: Canadian Broadcasting Corporation | C9: 1 | D9: 3 | F9: 1
A10: Federal | B10: Shared Services Canada | C10: 1 | D10: 2 | F10: 1 | G10: 1
A11: Federal | B11: Employment and Social Development Canada | C11: 1 | D11: 2 | G11: 2
A12: Federal | B12: Department of Finance Canada | C12: 1 | D12: 2 | F12: 2
A13: Federal | B13: Environment and Climate Change Canada | C13: 1 | D13: 1 | G13: 3
A14: Federal | B14: Health Canada | C14: 1 | G14: 4
A15: Federal | B15: Public Service Commission* | C15: 1
A16: Federal | B16: Communications Security Establishment | D16: 5
A17: Federal | B17: Canadian Security Intelligence Service | D17: 3 | E17: 2
A18: Federal | B18: Privy Council Office | D18: 3 | G18: 2
A19: Federal | B19: Immigration, Refugees and Citizenship Canada | D19: 3 | G19: 2
A20: Federal | B20: Global Affairs Canada | D20: 3 | G20: 2
A21: Federal | B21: Indigenous and Northern Affairs Canada | D21: 2 | F21: 1 | G21: 2
A22: Federal | B22: Canada Post Corporation | D22: 1 | E22: 3 | F22: 1
A23: Federal | B23: Correctional Service Canada | D23: 1 | G23: 3
A24: Federal | B24: Canada Border Services Agency | D24: 1 | G24: 4
A25: Federal | B25: Royal Canadian Mounted Police | G25: 5
A26: Federal | B26: Department of National Defence | G26: 5
B28: Totals | C28: 20 | D28: 46 | E28: 6 | F28: 8 | G28: 39

Sheet TableF3_FedSect.ReqCompare
A1: Days to final decision | B1: Federal | C1: Municipal | D1: Provincial
A2: 10 days or fewer | B2: 0.04166666667 | C2: 0.3684210526 | D2: 0.07894736842
A3: 11 to 20 days | B3: 0.04166666667 | C3: 0.2631578947 | D3: 0.3157894737
A4: 21 to 30 days | B4: 0.25 | C4: 0.3157894737 | D4: 0.1842105263
A5: 31 to 45 days | B5: 0.04166666667 | C5: 0 | D5: 0.2368421053
A6: 46 to 60 days | B6: 0.125 | C6: 0 | D6: 0
A7: More than 60 days | B7: 0.2083333333 | C7: 0.05263157895 | D7: 0.1315789474
A8: No decision by audit close | B8: 0.2916666667 | C8: 0 | D8: 0.05263157895
A10: Totals | B10: 1 | C10: 1 | D10: 1

Sheet Tables8&9_DataVsDocs
A1: Days to decision groups | B1: DATA | C1: DOCS | D1: VARIOUS | E1: DATA | F1: DOCS | G1: VARIOUS | J1: Final decision | K1: DATA | L1: DOCS | M1: VARIOUS | N1: DATA | O1: DOCS | P1: VARIOUS
A2: 10 days or fewer | B2: 11 | C2: 57 | D2: 11 | E2: 0.1067961165 | F2: 0.2489082969 | G2: 0.1392405063 | J2: Released in Full/Publicly available | K2: 38 | L2: 122 | M2: 26 | N2: 0.3689320388 | O2: 0.525862069 | P2: 0.3291139241
A3: 11 to 20 days | B3: 19 | C3: 35 | D3: 11 | E3: 0.1844660194 | F3: 0.1528384279 | G3: 0.1392405063 | J3: Denied in Part | K3: 45 | L3: 30 | M3: 14 | N3: 0.4368932039 | O3: 0.1293103448 | P3: 0.1772151899
A4: 21 to 30 days | B4: 23 | C4: 63 | D4: 26 | E4: 0.2233009709 | F4: 0.2751091703 | G4: 0.3291139241 | J4: Denied in Full | K4: 2 | L4: 16 | M4: 5 | N4: 0.01941747573 | O4: 0.06896551724 | P4: 0.06329113924
A5: 31 to 45 days | B5: 18 | C5: 22 | D5: 6 | E5: 0.1747572816 | F5: 0.096069869 | G5: 0.07594936709 | J5: Fee Estimate | K5: 5 | L5: 14 | M5: 7 | N5: 0.04854368932 | O5: 0.06034482759 | P5: 0.08860759494
A6: 46 to 60 days | B6: 4 | C6: 8 | D6: 4 | E6: 0.03883495146 | F6: 0.03493449782 | G6: 0.05063291139 | J6: No Records | L6: 29 | M6: 15 | N6: 0 | O6: 0.125 | P6: 0.1898734177
A7: More than 60 days | B7: 15 | C7: 23 | D7: 9 | E7: 0.145631068 | F7: 0.1004366812 | G7: 0.1139240506 | J7: No decision by audit close | K7: 13 | L7: 21 | M7: 12 | N7: 0.1262135922 | O7: 0.09051724138 | P7: 0.1518987342
A8: No decision by audit close | B8: 13 | C8: 21 | D8: 12 | E8: 0.1262135922 | F8: 0.09170305677 | G8: 0.1518987342

Sheet TableF4_letterscompare
A1: Days to decision groups | B1: Federal | C1: Municipal | D1: Federal | E1: Municipal
A2: 10 days or fewer | C2: 8 | D2: =B2/B$10 -> 0 | E2: =C2/C$10 -> 0.4210526316
A3: 11 to 20 days | B3: 3 | C3: 2 | D3: =B3/B$10 -> 0.125 | E3: =C3/C$10 -> 0.1052631579
A4: 21 to 30 days | B4: 2 | C4: 3 | D4: 0.08333333333 | E4: 0.1578947368
A5: 31 to 45 days | B5: 1 | C5: 1 | D5: 0.04166666667 | E5: 0.05263157895
A6: 46 to 60 days | C6: 4 | D6: 0 | E6: 0.2105263158
A7: More than 60 days | B7: 8 | C7: 1 | D7: 0.3333333333 | E7: 0.05263157895
A8: No decision by audit close | B8: 10 | D8: 0.4166666667 | E8: 0
A10: Totals | B10: =SUM(B2:B9) -> 24 | C10: =SUM(C2:C9) -> 19 | D10: 1 | E10: 1

Sheet Table10_Fees>$50
A1: Level | B1: Province | C1: Government body | D1: Request | E1: Fee
A2: Municipal | B2: ON | C2: City of Windsor | D2: MUNICIPAL REQUESTS | E2: 1872.6
A3: Provincial | B3: SK | C3: Ministry of Health | D3: PROVINCIAL SPECIFIC | E3: 1360
A4: Provincial | B4: AB | C4: Alberta Justice and Solicitor General | D4: PROVINCIAL SPECIFIC | E4: 804
A5: Provincial | B5: MB | C5: Manitoba Education and Training | D5: PROVINCIAL REFUGEES | E5: 645
A6: Provincial | B6: PE | C6: Education, Early Learning and Culture | D6: PROVINCIAL REFUGEES | E6: 554
A7: Municipal | B7: NL | C7: City of St. John's | D7: MUNICIPAL SPECIFIC | E7: 500
A8: Municipal | B8: SK | C8: City of Regina | D8: MUNICIPAL CORRESPONDENCE | E8: 338
A9: Provincial | B9: ON | C9: Ontario Ministry of Education | D9: PROVINCIAL REFUGEES | E9: 330
A10: Provincial | B10: AB | C10: Alberta Justice and Solicitor General | D10: PROVINCIAL REQUESTS | E10: 311.5
A11: Provincial | B11: NS | C11: Nova Scotia Department of Justice | D11: PROVINCIAL SPECIFIC | E11: 210
A12: Municipal | B12: QC | C12: Ville de Québec | D12: MUNICIPAL SPECIFIC | E12: 189.36
A13: Provincial | B13: SK | C13: Ministry of Education | D13: PROVINCIAL REFUGEES | E13: 127.5
A14: Provincial | B14: ON | C14: Ontario Ministry of the Attorney General | D14: PROVINCIAL REQUESTS | E14: 125
A15: Municipal | B15: ON | C15: City of Windsor | D15: MUNICIPAL SPECIFIC | E15: 106.19
A16: Municipal | B16: ON | C16: City of Hamilton | D16: MUNICIPAL CORRESPONDENCE | E16: 87
A17: Provincial | B17: ON | C17: Ontario Ministry of Health and Long-Term Care | D17: PROVINCIAL TRIPS | E17: 60
A18: Municipal | B18: BC | C18: City of Vancouver | D18: MUNICIPAL CORRESPONDENCE | E18: 60
A19: Municipal | B19: SK | C19: City of Saskatoon | D19: MUNICIPAL SPECIFIC | E19: 53.16
